[Event "*** Titled Tuesday Blitz"]
[Site "Chess.com"]
[Date "2021.04.27"]
[Round "2"]
[White "HrvojeZagreb"]
[Black "Manukyan_Artak"]
[Result "0-1"]
[WhiteElo "2247"]
[BlackElo "2456"]
[TimeControl "180+1"]
[EndTime "10:17:14 PDT"]
[Termination "Manukyan_Artak won by resignation"]

1. d4 {[%clk 0:03:00.9]} 1... Nf6 {[%clk 0:02:59.1]} 2. Bf4 {[%clk 0:03:00.9]}
2... c5 {[%clk 0:02:58.3]} 3. e3 {[%clk 0:03:00.8]} 3... d5 {[%clk 0:02:57.5]}
4. Nc3 {[%clk 0:03:00.4]} 4... Bg4 {[%clk 0:02:42.1]} 5. f3 {[%clk 0:02:53.3]}
5... Bh5 {[%clk 0:02:39.7]} 6. Nb5 {[%clk 0:02:46.6]} 6... Na6 {[%clk
0:02:38.9]} 7. c3 {[%clk 0:02:24.5]} 7... e6 {[%clk 0:02:29.4]} 8. h4 {[%clk
0:02:02]} 8... Bg6 {[%clk 0:02:25.1]} 9. g4 {[%clk 0:02:01.1]} 9... h6 {[%clk
0:02:25.3]} 10. Nh3 {[%clk 0:01:48]} 10... Be7 {[%clk 0:02:18.7]} 11. h5 {[%clk
0:01:25.2]} 11... Bh7 {[%clk 0:02:17]} 12. Bd3 {[%clk 0:01:17.7]} 12... Bxd3
{[%clk 0:02:14.6]} 13. Qxd3 {[%clk 0:01:18.6]} 13... Qb6 {[%clk 0:02:10.9]} 14.
a4 {[%clk 0:01:16.2]} 14... c4 {[%clk 0:02:09.3]} 15. Qb1 {[%clk 0:01:11.7]}
15... Rc8 {[%clk 0:02:04.8]} 16. b3 {[%clk 0:01:05.1]} 16... Nb8 {[%clk
0:01:55.5]} 17. bxc4 {[%clk 0:00:51.9]} 17... dxc4 {[%clk 0:01:55.3]} 18. a5
{[%clk 0:00:48]} 18... Qd8 {[%clk 0:01:45.7]} 19. Nxa7 {[%clk 0:00:44.8]} 19...
Nd5 {[%clk 0:01:45.8]} 20. Nxc8 {[%clk 0:00:29.5]} 20... Qxc8 {[%clk 0:01:45.6]}
21. Bxb8 {[%clk 0:00:23.6]} 21... Qxb8 {[%clk 0:01:45.9]} 22. Qb5+ {[%clk
0:00:23.2]} 22... Kf8 {[%clk 0:01:45.3]} 23. Kf2 {[%clk 0:00:19]} 23... Bh4+
{[%clk 0:01:40.3]} 24. Kf1 {[%clk 0:00:11.6]} 24... Qg3 {[%clk 0:01:34.6]} 25.
Qxc4 {[%clk 0:00:04.9]} 25... Qxf3+ {[%clk 0:01:23.4]} 26. Kg1 {[%clk
0:00:03.7]} 26... Qg3+ {[%clk 0:01:07.8]} 27. Kf1 {[%clk 0:00:03]} 27... Nxe3+
{[%clk 0:01:06.2]} 28. Ke2 {[%clk 0:00:03.2]} 28... Nxc4 {[%clk 0:01:06.2]} 0-1

[Event "*** Titled Tuesday Blitz"]
[Site "Chess.com"]
[Date "2021.04.27"]
[Round "2"]
[White "InitiatingASC"]
[Black "topin8"]
[Result "0-1"]
[WhiteElo "2414"]
[BlackElo "2232"]
[TimeControl "180+1"]
[EndTime "10:17:14 PDT"]
[Termination "topin8 won by checkmate"]

1. Nf3 {[%clk 0:03:00.9]} 1... Nf6 {[%clk 0:02:54.6]} 2. c4 {[%clk 0:03:00.2]}
2... e6 {[%clk 0:02:54.4]} 3. g3 {[%clk 0:02:57.9]} 3... d5 {[%clk 0:02:54.4]}
4. Bg2 {[%clk 0:02:57.7]} 4... Be7 {[%clk 0:02:53.2]} 5. O-O {[%clk 0:02:57.5]}
5... O-O {[%clk 0:02:53.6]} 6. d4 {[%clk 0:02:58.1]} 6... a6 {[%clk 0:02:47.3]}
7. Ne5 {[%clk 0:02:48.7]} 7... c5 {[%clk 0:02:38.9]} 8. Nc3 {[%clk 0:02:23.3]}
8... dxc4 {[%clk 0:02:20.2]} 9. dxc5 {[%clk 0:02:15.7]} 9... Bxc5 {[%clk
0:02:16.4]} 10. Nxc4 {[%clk 0:02:12.4]} 10... Nc6 {[%clk 0:01:59.2]} 11. Bg5
{[%clk 0:02:03]} 11... Be7 {[%clk 0:01:50]} 12. Qb3 {[%clk 0:01:48.8]} 12... Na5
{[%clk 0:01:40.3]} 13. Nxa5 {[%clk 0:01:25.3]} 13... Qxa5 {[%clk 0:01:39.1]} 14.
Be3 {[%clk 0:01:26.2]} 14... Bd7 {[%clk 0:01:03.4]} 15. Bb6 {[%clk 0:00:44.3]}
15... Qh5 {[%clk 0:01:02.7]} 16. Bxb7 {[%clk 0:00:19.4]} 16... Rab8 {[%clk
0:01:00.7]} 17. Bc7 {[%clk 0:00:18.6]} 17... Ng4 {[%clk 0:00:55.8]} 18. h4
{[%clk 0:00:18.8]} 18... Bc6 {[%clk 0:00:48.3]} 19. Bxb8 {[%clk 0:00:16.5]}
19... Rxb8 {[%clk 0:00:47.6]} 20. Bxc6 {[%clk 0:00:16.9]} 20... Rxb3 {[%clk
0:00:44.7]} 21. axb3 {[%clk 0:00:16.4]} 21... Bxh4 {[%clk 0:00:45.1]} 22. Bf3
{[%clk 0:00:15.7]} 22... Bxg3 {[%clk 0:00:44.6]} 23. Rfd1 {[%clk 0:00:13.8]}
23... Qh2+ {[%clk 0:00:43.6]} 24. Kf1 {[%clk 0:00:13.6]} 24... Qxf2# {[%clk
0:00:42.5]} 0-1

[Event "*** Titled Tuesday Blitz"]
[Site "Chess.com"]
[Date "2021.04.27"]
[Round "2"]
[White "rikyshi"]
[Black "mbachez"]
[Result "0-1"]
[WhiteElo "2197"]
[BlackElo "2428"]
[TimeControl "180+1"]
[EndTime "10:17:14 PDT"]
[Termination "mbachez won on time"]

1. d4 {[%clk 0:03:00.9]} 1... Nf6 {[%clk 0:02:58.9]} 2. Nc3 {[%clk 0:02:57.3]}
2... e6 {[%clk 0:02:53.7]} 3. Bf4 {[%clk 0:02:46.3]} 3... Bb4 {[%clk 0:02:52.7]}
4. Qd3 {[%clk 0:02:26.3]} 4... b6 {[%clk 0:02:50.6]} 5. Nf3 {[%clk 0:02:19.1]}
5... Ba6 {[%clk 0:02:49.1]} 6. Qd1 {[%clk 0:02:16.2]} 6... Ne4 {[%clk
0:02:17.5]} 7. Bd2 {[%clk 0:02:08.1]} 7... Nxc3 {[%clk 0:02:16]} 8. Bxc3 {[%clk
0:02:06.5]} 8... Bxc3+ {[%clk 0:02:14.3]} 9. bxc3 {[%clk 0:02:06.9]} 9... Nc6
{[%clk 0:02:12.2]} 10. Nd2 {[%clk 0:01:54.2]} 10... O-O {[%clk 0:02:06.8]} 11.
e4 {[%clk 0:01:54]} 11... Bxf1 {[%clk 0:02:06.3]} 12. Nxf1 {[%clk 0:01:51.5]}
12... e5 {[%clk 0:02:07.2]} 13. Ng3 {[%clk 0:01:48.4]} 13... Qh4 {[%clk
0:02:01.6]} 14. Qd3 {[%clk 0:01:37.9]} 14... Rae8 {[%clk 0:01:59.5]} 15. O-O
{[%clk 0:01:31.9]} 15... d6 {[%clk 0:01:28.8]} 16. Nf5 {[%clk 0:00:58.8]} 16...
Qg5 {[%clk 0:01:23.5]} 17. Qh3 {[%clk 0:00:19.9]} 17... exd4 {[%clk 0:01:16]}
18. cxd4 {[%clk 0:00:19.1]} 18... Rxe4 {[%clk 0:01:13.4]} 19. d5 {[%clk
0:00:16.4]} 19... Ne7 {[%clk 0:01:03.4]} 20. Ne3 {[%clk 0:00:15.5]} 20... f5
{[%clk 0:01:02.2]} 21. Rae1 {[%clk 0:00:06.7]} 21... Rh4 {[%clk 0:00:54.9]} 22.
Qf3 {[%clk 0:00:05.7]} 22... Ng6 {[%clk 0:00:53.7]} 0-1

[Event "*** Titled Tuesday Blitz"]
[Site "Chess.com"]
[Date "2021.04.27"]
[Round "2"]
[White "TimurGareyev"]
[Black "Natalya_Buksa"]
[Result "1-0"]
[WhiteElo "2723"]
[BlackElo "2503"]
[TimeControl "180+1"]
[EndTime "10:17:18 PDT"]
[Termination "TimurGareyev won by resignation"]

1. d4 {[%clk 0:02:55.9]} 1... d5 {[%clk 0:02:59.9]} 2. c4 {[%clk 0:02:55.2]}
2... e6 {[%clk 0:03:00.4]} 3. Nf3 {[%clk 0:02:54]} 3... Nf6 {[%clk 0:03:00.7]}
4. Nc3 {[%clk 0:02:53]} 4... Be7 {[%clk 0:02:57.2]} 5. e3 {[%clk 0:02:51.2]}
5... O-O {[%clk 0:02:51.5]} 6. Qc2 {[%clk 0:02:50.2]} 6... a6 {[%clk 0:02:50.9]}
7. b3 {[%clk 0:02:48.7]} 7... b6 {[%clk 0:02:49.9]} 8. Bb2 {[%clk 0:02:41]} 8...
Bb7 {[%clk 0:02:50.2]} 9. Rd1 {[%clk 0:02:39.6]} 9... Nbd7 {[%clk 0:02:50.2]}
10. Bd3 {[%clk 0:02:38.1]} 10... Rc8 {[%clk 0:02:42.3]} 11. cxd5 {[%clk
0:02:33.4]} 11... exd5 {[%clk 0:02:37.4]} 12. Ne5 {[%clk 0:02:33.3]} 12... c5
{[%clk 0:02:36.4]} 13. Nxd7 {[%clk 0:02:22.7]} 13... Nxd7 {[%clk 0:02:19.3]} 14.
Bxh7+ {[%clk 0:02:21.8]} 14... Kh8 {[%clk 0:02:19.9]} 15. Bf5 {[%clk 0:02:19.5]}
15... Bf6 {[%clk 0:02:10.7]} 16. O-O {[%clk 0:02:05.7]} 16... g6 {[%clk
0:01:55.6]} 17. Bxd7 {[%clk 0:01:42.3]} 17... Qxd7 {[%clk 0:01:54.9]} 18. dxc5
{[%clk 0:01:40.7]} 18... d4 {[%clk 0:01:19]} 19. Ne4 {[%clk 0:01:09]} 19... Bxe4
{[%clk 0:00:37.6]} 20. Qxe4 {[%clk 0:01:06.4]} 20... bxc5 {[%clk 0:00:37.9]} 21.
exd4 {[%clk 0:01:00.4]} 21... Rfd8 {[%clk 0:00:35.2]} 22. Rd3 {[%clk 0:00:56.4]}
22... cxd4 {[%clk 0:00:32.2]} 23. Rfd1 {[%clk 0:00:56.4]} 23... Rc5 {[%clk
0:00:24.9]} 24. Rxd4 {[%clk 0:00:53]} 24... Bxd4 {[%clk 0:00:17.9]} 25. Rxd4
{[%clk 0:00:51.2]} 25... Rc1+ {[%clk 0:00:14.8]} 26. Bxc1 {[%clk 0:00:49.9]}
26... Qxd4 {[%clk 0:00:14.8]} 27. Qxd4+ {[%clk 0:00:49.2]} 27... Rxd4 {[%clk
0:00:14.6]} 28. Bb2 {[%clk 0:00:49.3]} 1-0

[Event "*** Titled Tuesday Blitz"]
[Site "Chess.com"]
[Date "2021.04.27"]
[Round "2"]
[White "SanchezKelvin"]
[Black "LazyIM"]
[Result "0-1"]
[WhiteElo "196"]
[BlackElo "2612"]
[TimeControl "180+1"]
[EndTime "10:17:19 PDT"]
[Termination "LazyIM won by resignation"]

1. e4 {[%clk 0:03:00.9]} 1... c5 {[%clk 0:02:57.1]} 2. Nf3 {[%clk 0:03:00.9]}
2... e6 {[%clk 0:02:55.2]} 3. d4 {[%clk 0:03:00.9]} 3... cxd4 {[%clk 0:02:55.4]}
4. Nxd4 {[%clk 0:03:01.8]} 4... a6 {[%clk 0:02:55.6]} 5. c4 {[%clk 0:03:01.6]}
5... Nf6 {[%clk 0:02:54.3]} 6. Nc3 {[%clk 0:03:01.6]} 6... Bb4 {[%clk 0:02:55]}
7. f3 {[%clk 0:03:01.6]} 7... d6 {[%clk 0:02:48.6]} 8. Nc2 {[%clk 0:03:01.1]}
8... Bxc3+ {[%clk 0:02:48.4]} 9. bxc3 {[%clk 0:03:02]} 9... O-O {[%clk
0:02:33.7]} 10. Ba3 {[%clk 0:03:01]} 10... Ne8 {[%clk 0:02:33.7]} 11. e5 {[%clk
0:02:59.3]} 11... Qa5 {[%clk 0:02:33.8]} 12. Bb4 {[%clk 0:02:59.1]} 12... Qxe5+
{[%clk 0:02:33.5]} 13. Kf2 {[%clk 0:02:58.3]} 13... Nc6 {[%clk 0:02:32.7]} 14.
Bd3 {[%clk 0:02:47.6]} 14... Nxb4 {[%clk 0:02:30.2]} 15. cxb4 {[%clk 0:02:36.3]}
15... Nf6 {[%clk 0:02:29.1]} 16. Re1 {[%clk 0:02:35.5]} 16... Qxh2 {[%clk
0:02:28.2]} 17. Rh1 {[%clk 0:02:31.7]} 17... Qe5 {[%clk 0:02:26.6]} 18. Qd2
{[%clk 0:02:31.7]} 18... h6 {[%clk 0:02:20.6]} 19. Rae1 {[%clk 0:02:29.9]} 19...
Qg5 {[%clk 0:02:19]} 20. Qc3 {[%clk 0:02:07.4]} 20... e5 {[%clk 0:02:11]} 21.
Ne3 {[%clk 0:02:04.8]} 21... Be6 {[%clk 0:02:09.3]} 22. Bb1 {[%clk 0:01:59.3]}
22... Rfd8 {[%clk 0:02:02.1]} 23. Qd3 {[%clk 0:01:58.7]} 23... Rac8 {[%clk
0:02:00.9]} 24. Rd1 {[%clk 0:01:54.7]} 24... g6 {[%clk 0:01:50]} 25. Qe2 {[%clk
0:01:35.4]} 25... Kg7 {[%clk 0:01:42.1]} 26. g3 {[%clk 0:01:27.4]} 26... d5
{[%clk 0:01:39.3]} 27. cxd5 {[%clk 0:01:20.7]} 27... Nxd5 {[%clk 0:01:39.3]} 28.
Nxd5 {[%clk 0:01:05.1]} 28... Rxd5 {[%clk 0:01:38.4]} 29. Rxd5 {[%clk
0:01:04.5]} 29... Bxd5 {[%clk 0:01:39.3]} 30. Re1 {[%clk 0:01:03.4]} 30... Rc3
{[%clk 0:01:34.2]} 31. Qxe5+ {[%clk 0:01:00.4]} 31... Qxe5 {[%clk 0:01:34.3]}
32. Rxe5 {[%clk 0:01:01.3]} 32... Rxf3+ {[%clk 0:01:34.4]} 33. Ke2 {[%clk
0:01:01.8]} 33... Bc6 {[%clk 0:01:34.8]} 34. Re7 {[%clk 0:00:44.4]} 34... Rxg3
{[%clk 0:01:32.5]} 35. Bc2 {[%clk 0:00:44.4]} 35... Bd5 {[%clk 0:01:25.9]} 36.
a4 {[%clk 0:00:42.7]} 36... h5 {[%clk 0:01:23.9]} 37. Rd7 {[%clk 0:00:42.6]}
37... Rg5 {[%clk 0:01:22.9]} 38. Ke3 {[%clk 0:00:36.5]} 38... h4 {[%clk
0:01:16.1]} 39. Kf4 {[%clk 0:00:36.4]} 39... Rh5 {[%clk 0:01:15.5]} 40. Bd1
{[%clk 0:00:35.7]} 40... Rf5+ {[%clk 0:01:10.9]} 41. Kg4 {[%clk 0:00:34.9]}
41... Be6 {[%clk 0:01:11.4]} 0-1

[Event "*** Titled Tuesday Blitz"]
[Site "Chess.com"]
[Date "2021.04.27"]
[Round "2"]
[White "kakorrhaphiophobie"]
[Black "DenisQ"]
[Result "0-1"]
[WhiteElo "2305"]
[BlackElo "2634"]
[TimeControl "180+1"]
[EndTime "10:17:19 PDT"]
[Termination "DenisQ won on time"]

1. d4 {[%clk 0:03:00.9]} 1... Nf6 {[%clk 0:02:58.6]} 2. c4 {[%clk 0:03:01.2]}
2... c6 {[%clk 0:02:55.8]} 3. Nc3 {[%clk 0:02:59.4]} 3... d5 {[%clk 0:02:55.7]}
4. e3 {[%clk 0:02:59.6]} 4... Bf5 {[%clk 0:02:52.2]} 5. Qb3 {[%clk 0:02:59.6]}
5... Qb6 {[%clk 0:02:49.4]} 6. c5 {[%clk 0:02:43.9]} 6... Qc7 {[%clk 0:02:47.2]}
7. Nf3 {[%clk 0:02:30.5]} 7... Nbd7 {[%clk 0:02:45.6]} 8. Ne2 {[%clk 0:02:26.8]}
8... b6 {[%clk 0:02:40.9]} 9. Ng3 {[%clk 0:02:24.1]} 9... Bg6 {[%clk 0:02:39.3]}
10. cxb6 {[%clk 0:02:23.9]} 10... axb6 {[%clk 0:02:38.6]} 11. Nh4 {[%clk
0:02:12.9]} 11... e6 {[%clk 0:02:36.4]} 12. Be2 {[%clk 0:02:10.2]} 12... Bd6
{[%clk 0:02:33]} 13. Nxg6 {[%clk 0:02:07.2]} 13... hxg6 {[%clk 0:02:32.5]} 14.
f4 {[%clk 0:02:00.1]} 14... g5 {[%clk 0:02:21]} 15. O-O {[%clk 0:01:55.6]} 15...
gxf4 {[%clk 0:02:10]} 16. exf4 {[%clk 0:01:55.5]} 16... c5 {[%clk 0:02:10.1]}
17. Be3 {[%clk 0:01:50.9]} 17... cxd4 {[%clk 0:02:01.9]} 18. Bxd4 {[%clk
0:01:40.5]} 18... Bxf4 {[%clk 0:02:01.2]} 19. Bb5 {[%clk 0:01:31.5]} 19... Bxg3
{[%clk 0:01:53.8]} 20. hxg3 {[%clk 0:01:31.1]} 20... O-O {[%clk 0:01:53.5]} 21.
Bxd7 {[%clk 0:00:43.1]} 21... Nxd7 {[%clk 0:01:50.3]} 22. Qf3 {[%clk 0:00:26.1]}
22... e5 {[%clk 0:01:48.8]} 23. Bf2 {[%clk 0:00:16.5]} 23... d4 {[%clk 0:01:45]}
24. Rae1 {[%clk 0:00:14.4]} 24... Rxa2 {[%clk 0:01:42.6]} 25. Re4 {[%clk
0:00:13.9]} 25... Qc6 {[%clk 0:01:31.5]} 26. Qe2 {[%clk 0:00:08.5]} 26... Rxb2
{[%clk 0:01:29]} 27. Qxb2 {[%clk 0:00:05.7]} 27... Qxe4 {[%clk 0:01:29]} 28. Qb5
{[%clk 0:00:06]} 28... Nc5 {[%clk 0:01:25.4]} 29. Qxb6 {[%clk 0:00:05.6]} 29...
Nd3 {[%clk 0:01:25.4]} 30. Qb5 {[%clk 0:00:02.7]} 30... Rc8 {[%clk 0:01:18.5]}
31. g4 {[%clk 0:00:01.3]} 31... Nxf2 {[%clk 0:01:08.7]} 0-1

[Event "*** Titled Tuesday Blitz"]
[Site "Chess.com"]
[Date "2021.04.27"]
[Round "2"]
[White "Nikolakis2014"]
[Black "DonBroca"]
[Result "1-0"]
[WhiteElo "2618"]
[BlackElo "2219"]
[TimeControl "180+1"]
[EndTime "10:17:25 PDT"]
[Termination "Nikolakis2014 won by resignation"]

1. e4 {[%clk 0:03:00.9]} 1... c5 {[%clk 0:02:59.5]} 2. Nf3 {[%clk 0:03:00.5]}
2... d6 {[%clk 0:02:58.1]} 3. d4 {[%clk 0:03:00.6]} 3... cxd4 {[%clk 0:02:59]}
4. Nxd4 {[%clk 0:03:00.8]} 4... Nf6 {[%clk 0:02:59.5]} 5. Nc3 {[%clk 0:03:01.1]}
5... g6 {[%clk 0:03:00]} 6. Be3 {[%clk 0:02:59.8]} 6... Bg7 {[%clk 0:03:00.3]}
7. f3 {[%clk 0:02:59]} 7... Nc6 {[%clk 0:02:59.3]} 8. Qd2 {[%clk 0:02:59.1]}
8... O-O {[%clk 0:02:59]} 9. O-O-O {[%clk 0:02:59.2]} 9... d5 {[%clk 0:02:59.4]}
10. Qe1 {[%clk 0:02:59.5]} 10... e5 {[%clk 0:02:36.2]} 11. Nxc6 {[%clk
0:02:56.3]} 11... bxc6 {[%clk 0:02:37.1]} 12. exd5 {[%clk 0:02:56.6]} 12... Nxd5
{[%clk 0:02:36.8]} 13. Bc4 {[%clk 0:02:56.3]} 13... Be6 {[%clk 0:02:35.5]} 14.
Bb3 {[%clk 0:02:56.3]} 14... Re8 {[%clk 0:02:15.5]} 15. Kb1 {[%clk 0:02:55.9]}
15... a5 {[%clk 0:01:38.6]} 16. h4 {[%clk 0:02:51.2]} 16... Rb8 {[%clk
0:01:21.2]} 17. h5 {[%clk 0:02:45.8]} 17... Qc7 {[%clk 0:01:11.9]} 18. hxg6
{[%clk 0:02:43.7]} 18... hxg6 {[%clk 0:01:12.8]} 19. Bh6 {[%clk 0:02:33.9]}
19... Bf6 {[%clk 0:01:05.4]} 20. Ne4 {[%clk 0:02:28.1]} 20... Qe7 {[%clk
0:00:48.4]} 21. Qxa5 {[%clk 0:02:18.2]} 21... Rb5 {[%clk 0:00:40.6]} 22. Qd2
{[%clk 0:02:14.2]} 22... Reb8 {[%clk 0:00:34.9]} 23. g4 {[%clk 0:01:48.7]} 23...
Nf4 {[%clk 0:00:20.2]} 24. Bxf4 {[%clk 0:01:39.7]} 24... exf4 {[%clk 0:00:19.2]}
25. Qxf4 {[%clk 0:01:37.7]} 25... Bg7 {[%clk 0:00:18.8]} 26. g5 {[%clk
0:01:31.5]} 26... Bd5 {[%clk 0:00:12.2]} 27. Nf6+ {[%clk 0:01:28.2]} 27... Kf8
{[%clk 0:00:10.8]} 28. c4 {[%clk 0:01:24]} 28... Rxb3 {[%clk 0:00:07.9]} 29.
axb3 {[%clk 0:01:23.7]} 29... Rxb3 {[%clk 0:00:06.7]} 30. cxd5 {[%clk
0:01:23.9]} 30... Qa3 {[%clk 0:00:05.5]} 31. Rd2 {[%clk 0:01:08.2]} 31... Qb4
{[%clk 0:00:01.9]} 32. Qxb4+ {[%clk 0:01:05]} 32... Rxb4 {[%clk 0:00:02.3]} 33.
dxc6 {[%clk 0:01:05.3]} 1-0

[Event "*** Titled Tuesday Blitz"]
[Site "Chess.com"]
[Date "2021.04.27"]
[Round "2"]
[White "GMJustin"]
[Black "lagedema"]
[Result "0-1"]
[WhiteElo "2290"]
[BlackElo "2590"]
[TimeControl "180+1"]
[EndTime "10:17:26 PDT"]
[Termination "lagedema won on time"]

1. e4 {[%clk 0:02:52.4]} 1... c6 {[%clk 0:02:59.4]} 2. d4 {[%clk 0:02:51.7]}
2... d5 {[%clk 0:02:59.7]} 3. e5 {[%clk 0:02:52]} 3... Bf5 {[%clk 0:02:58.9]} 4.
Bd3 {[%clk 0:02:48.6]} 4... Bxd3 {[%clk 0:02:58.3]} 5. Qxd3 {[%clk 0:02:49.5]}
5... e6 {[%clk 0:02:59.1]} 6. Ne2 {[%clk 0:02:49]} 6... c5 {[%clk 0:02:58.6]} 7.
c3 {[%clk 0:02:43.2]} 7... Nc6 {[%clk 0:02:58]} 8. O-O {[%clk 0:02:40.6]} 8...
Qb6 {[%clk 0:02:54]} 9. Nd2 {[%clk 0:02:25.9]} 9... cxd4 {[%clk 0:02:51.5]} 10.
cxd4 {[%clk 0:02:26.8]} 10... Nge7 {[%clk 0:02:51.9]} 11. Nf3 {[%clk 0:02:21.4]}
11... Nf5 {[%clk 0:02:48.1]} 12. g4 {[%clk 0:02:15.7]} 12... Nfe7 {[%clk
0:02:46.5]} 13. Nf4 {[%clk 0:02:10]} 13... Ng6 {[%clk 0:02:45.1]} 14. Nh5 {[%clk
0:02:02.2]} 14... O-O-O {[%clk 0:02:40.6]} 15. Bg5 {[%clk 0:01:41.1]} 15... Rd7
{[%clk 0:02:40]} 16. a3 {[%clk 0:01:23]} 16... Kb8 {[%clk 0:02:39.1]} 17. b4
{[%clk 0:01:19.2]} 17... h6 {[%clk 0:02:38.1]} 18. Be3 {[%clk 0:01:15.2]} 18...
Rg8 {[%clk 0:02:38.6]} 19. Nd2 {[%clk 0:01:00.2]} 19... Be7 {[%clk 0:02:19.4]}
20. Nb3 {[%clk 0:00:58.4]} 20... Rdd8 {[%clk 0:02:14.4]} 21. Nc5 {[%clk
0:00:55.3]} 21... Nh4 {[%clk 0:02:08.8]} 22. f4 {[%clk 0:00:43.8]} 22... g6
{[%clk 0:01:59.3]} 23. Nf6 {[%clk 0:00:42.9]} 23... Bxf6 {[%clk 0:01:55.8]} 24.
exf6 {[%clk 0:00:43.8]} 24... g5 {[%clk 0:01:56]} 25. fxg5 {[%clk 0:00:13.6]}
25... hxg5 {[%clk 0:01:55.1]} 26. Rfb1 {[%clk 0:00:13.2]} 26... Ka8 {[%clk
0:01:48.4]} 27. a4 {[%clk 0:00:11.6]} 27... Qc7 {[%clk 0:01:46.8]} 28. Bf2
{[%clk 0:00:09.8]} 28... Qf4 {[%clk 0:01:43.2]} 29. Bg3 {[%clk 0:00:07.4]} 29...
Qxd4+ {[%clk 0:01:40.6]} 30. Qxd4 {[%clk 0:00:07.3]} 30... Nxd4 {[%clk
0:01:40.6]} 31. Kf2 {[%clk 0:00:04.7]} 31... Ng6 {[%clk 0:01:32.8]} 32. Rd1
{[%clk 0:00:04.2]} 32... Nc6 {[%clk 0:01:28.7]} 33. b5 {[%clk 0:00:04.2]} 33...
Nce5 {[%clk 0:01:28.6]} 34. h3 {[%clk 0:00:02.9]} 34... Nd7 {[%clk 0:01:24.2]}
0-1

[Event "*** Titled Tuesday Blitz"]
[Site "Chess.com"]
[Date "2021.04.27"]
[Round "2"]
[White "ChristopherYoo"]
[Black "JiiHart"]
[Result "1-0"]
[WhiteElo "2938"]
[BlackElo "2016"]
[TimeControl "180+1"]
[EndTime "10:17:27 PDT"]
[Termination "ChristopherYoo won by resignation"]

1. d3 {[%clk 0:02:46.8]} 1... Nf6 {[%clk 0:02:57.5]} 2. e4 {[%clk 0:02:45.9]}
2... d6 {[%clk 0:02:57.3]} 3. Ne2 {[%clk 0:02:44]} 3... g6 {[%clk 0:02:57.5]} 4.
g3 {[%clk 0:02:43.9]} 4... Bg7 {[%clk 0:02:57.7]} 5. Bg2 {[%clk 0:02:44.6]} 5...
O-O {[%clk 0:02:57.8]} 6. O-O {[%clk 0:02:44.4]} 6... c5 {[%clk 0:02:58.1]} 7.
Nbc3 {[%clk 0:02:40.6]} 7... Nc6 {[%clk 0:02:55.8]} 8. Be3 {[%clk 0:02:40.4]}
8... Ng4 {[%clk 0:02:52.9]} 9. Bg5 {[%clk 0:02:36.9]} 9... h6 {[%clk 0:02:52.2]}
10. Bd2 {[%clk 0:02:36.5]} 10... Nd4 {[%clk 0:02:50]} 11. h3 {[%clk 0:02:35.5]}
11... Ne5 {[%clk 0:02:27.6]} 12. Nxd4 {[%clk 0:02:32.8]} 12... cxd4 {[%clk
0:02:27.9]} 13. Ne2 {[%clk 0:02:32.3]} 13... Nc6 {[%clk 0:02:26.9]} 14. f4
{[%clk 0:02:31.4]} 14... f5 {[%clk 0:02:24.7]} 15. exf5 {[%clk 0:02:30.6]} 15...
Bxf5 {[%clk 0:02:12.8]} 16. g4 {[%clk 0:02:30.2]} 16... Bd7 {[%clk 0:02:05.4]}
17. Ng3 {[%clk 0:02:30.1]} 17... e6 {[%clk 0:01:58.8]} 18. Be4 {[%clk
0:02:05.8]} 18... Qe8 {[%clk 0:01:52.3]} 19. f5 {[%clk 0:02:00.3]} 19... gxf5
{[%clk 0:01:44.9]} 20. gxf5 {[%clk 0:01:59.9]} 20... exf5 {[%clk 0:01:40.7]} 21.
Bd5+ {[%clk 0:01:44]} 21... Kh7 {[%clk 0:01:27.5]} 22. Kh1 {[%clk 0:01:41.2]}
22... Ne5 {[%clk 0:01:08.1]} 23. Qh5 {[%clk 0:01:07.9]} 23... Bc6 {[%clk
0:01:03.8]} 24. Bxc6 {[%clk 0:00:57.1]} 24... Qxc6+ {[%clk 0:01:03.2]} 25. Kh2
{[%clk 0:00:56.4]} 25... Qxc2 {[%clk 0:00:45.4]} 26. Rf2 {[%clk 0:00:56.2]}
26... Nxd3 {[%clk 0:00:36.9]} 27. Rg2 {[%clk 0:00:54.1]} 27... f4 {[%clk
0:00:18.9]} 28. Nf5 {[%clk 0:00:51.8]} 28... Rg8 {[%clk 0:00:07.5]} 29. Rxg7+
{[%clk 0:00:50.6]} 29... Rxg7 {[%clk 0:00:07.1]} 30. Qxh6+ {[%clk 0:00:51.5]}
1-0

[Event "*** Titled Tuesday Blitz"]
[Site "Chess.com"]
[Date "2021.04.27"]
[Round "2"]
[White "chessflav"]
[Black "Aslanov_Umid"]
[Result "1-0"]
[WhiteElo "2315"]
[BlackElo "2442"]
[TimeControl "180+1"]
[EndTime "10:17:28 PDT"]
[Termination "chessflav won by resignation"]

1. e4 {[%clk 0:02:04.2]} 1... c5 {[%clk 0:02:58.9]} 2. Nc3 {[%clk 0:02:04.7]}
2... d6 {[%clk 0:02:58.7]} 3. g3 {[%clk 0:02:05.6]} 3... g6 {[%clk 0:02:58.1]}
4. Bg2 {[%clk 0:02:06.5]} 4... Bg7 {[%clk 0:02:59]} 5. d3 {[%clk 0:02:06.1]}
5... Nc6 {[%clk 0:02:58.7]} 6. Be3 {[%clk 0:02:05.2]} 6... e6 {[%clk 0:02:56.7]}
7. Qd2 {[%clk 0:02:05.2]} 7... Rb8 {[%clk 0:02:52.1]} 8. Nge2 {[%clk 0:02:04.6]}
8... Nge7 {[%clk 0:02:51.6]} 9. Bh6 {[%clk 0:02:04.2]} 9... O-O {[%clk 0:02:52]}
10. h4 {[%clk 0:02:04.7]} 10... Nd4 {[%clk 0:02:40.6]} 11. Bxg7 {[%clk
0:02:00.5]} 11... Kxg7 {[%clk 0:02:40.1]} 12. h5 {[%clk 0:02:01.4]} 12... Rh8
{[%clk 0:02:34.7]} 13. h6+ {[%clk 0:02:01.5]} 13... Kf8 {[%clk 0:02:32.8]} 14.
Nxd4 {[%clk 0:02:01.6]} 14... cxd4 {[%clk 0:02:33.7]} 15. Ne2 {[%clk 0:02:02.5]}
15... Nc6 {[%clk 0:02:33.6]} 16. c3 {[%clk 0:02:02.2]} 16... Qf6 {[%clk
0:02:17.2]} 17. cxd4 {[%clk 0:01:43.9]} 17... Nxd4 {[%clk 0:02:18.1]} 18. Qc3
{[%clk 0:01:44.4]} 18... e5 {[%clk 0:02:13.2]} 19. Qc7 {[%clk 0:01:29]} 19...
Ra8 {[%clk 0:02:12.9]} 20. Nxd4 {[%clk 0:01:25.3]} 20... exd4 {[%clk 0:02:13]}
21. Rc1 {[%clk 0:01:26.2]} 21... Bg4 {[%clk 0:02:08.2]} 22. Qxb7 {[%clk
0:01:25.6]} 22... Re8 {[%clk 0:02:06.1]} 23. Qxa7 {[%clk 0:01:23.6]} 23... Bf3
{[%clk 0:01:59.3]} 24. O-O {[%clk 0:01:22.9]} 24... Bxg2 {[%clk 0:01:58.5]} 25.
Kxg2 {[%clk 0:01:23.8]} 25... g5 {[%clk 0:01:53.3]} 26. Rc4 {[%clk 0:01:22.3]}
26... Qxh6 {[%clk 0:01:42.2]} 27. Rh1 {[%clk 0:01:12.6]} 27... Qf6 {[%clk
0:01:39.2]} 28. Rxd4 {[%clk 0:01:09.2]} 28... g4 {[%clk 0:01:35]} 29. Rc1 {[%clk
0:00:56.1]} 29... h5 {[%clk 0:01:33]} 30. Qb6 {[%clk 0:00:55.7]} 30... Rd8
{[%clk 0:01:26]} 31. Rd5 {[%clk 0:00:52.4]} 31... h4 {[%clk 0:00:41.6]} 32. Rf5
{[%clk 0:00:52.3]} 32... Qh6 {[%clk 0:00:41.3]} 33. Qxd8+ {[%clk 0:00:51]} 33...
Kg7 {[%clk 0:00:41.7]} 34. Qxh4 {[%clk 0:00:45.4]} 34... Qxc1 {[%clk 0:00:39.3]}
35. Qf6+ {[%clk 0:00:44.1]} 1-0